Workbook

Sheet přihlášení
A1: # hráče | B1: jméno | C1: nasazený | E1: Přehled | P1: 21:10:00
A2: =ROW()-1 -> 1 | B2: Jelínková Adéla | C2: TRUE | E2: =IF(OR(F4=11,F4<=7),"Pozor, pro "&F4&" přihlášených hráčů není určená logika rozdělení!","") -> 
A3: 2 | B3: Tománková Denisa | C3: TRUE | E3: =IF(rg_počet_nasazených>rg_pocet_skupin,"Pozor, počet nasazených je vyšší, než počet skupin. Není připravená logika.","") -> 
A4: 3 | B4: Pěnčíková Tereza | C4: TRUE | E4: počet přihlášených: | F4: =COUNTA(tbl_seznam_hracu[jméno]) -> 14
A5: 4 | B5: Michna Lisa | C5: FALSE | E5: počet nasazených: | F5: =COUNTIFS(tbl_seznam_hracu[nasazený],TRUE) -> 3
A6: 5 | B6: Farajpourová Aináz | C6: FALSE | E6: počet skupin: | F6: =ROUNDDOWN(F4/4,0) -> 3
A7: 6 | B7: Mottlová Sofie | C7: FALSE | E7: počet 5-ti členných skupin: | F7: =MOD(F4,4) -> 2
A8: 7 | B8: Marešová Beata | C8: FALSE
A9: 8 | B9: Gabrielová Edita Luisa | C9: FALSE
A10: 9 | B10: Hadrabová Radka | C10: FALSE
A11: 10 | B11: Krejčíková Viktorie | C11: FALSE
A12: 11 | B12: Kolářová Viktorie | C12: FALSE | E12: Tabulka se seznamem hráčů musí být seřazena tak, že na začátku seznamu jsou nasazení hráči.
A13: =ROW()-1 -> 12 | B13: Halfarová Eva | C13: FALSE
A14: =ROW()-1 -> 13 | B14: Jiráková Sofie | C14: FALSE
A15: 14 | B15: Slavíková Tereza | C15: FALSE

Sheet sys_tab
A1: pozice v tabulce | B1: # nasazeneho | C1: nasazeni | D1: skupina | E1: poradi 5. člena | F1: obsazovana pozice | G1: los | H1: los nenasazenych | I1: rank = # hrace | J1: hrac
A2: 1 | B2: 1 | C2: =IF(rg_počet_nasazených>=tbl_pozice[[#This Row],['# nasazeneho]],TRUE,FALSE) -> TRUE | D2: 1 | F2: =IF(rg_pocet_skupin*5>=A2,TRUE,FALSE) -> TRUE | G2: 0.9624690944 | H2: =IF(AND(tbl_pozice[[#This Row],[obsazovana pozice]],NOT(tbl_pozice[[#This Row],[nasazeni]])),tbl_pozice[[#This Row],[los]],0) -> 0 | I2: =IF(tbl_pozice[[#This Row],[obsazovana pozice]],IF(tbl_pozice[[#This Row],[nasazeni]],tbl_pozice[[#This Row],['# nasazeneho]],RANK(tbl_pozice[[#This Row],[los nenasazenych]],tbl_pozice[los nenasazenych])+rg_počet_nasazených),0) -> 1 | J2: =IFERROR(VLOOKUP(tbl_pozice[[#This Row],[rank = '# hrace]],tbl_seznam_hracu[],2,0),0) -> Jelínková Adéla
A3: 2 | C3: FALSE | D3: 1 | F3: =IF(rg_pocet_skupin*5>=A3,TRUE,FALSE) -> TRUE | G3: 0.6974577191 | H3: =IF(AND(tbl_pozice[[#This Row],[obsazovana pozice]],NOT(tbl_pozice[[#This Row],[nasazeni]])),tbl_pozice[[#This Row],[los]],0) -> 0.6974577191 | I3: =IF(tbl_pozice[[#This Row],[obsazovana pozice]],IF(tbl_pozice[[#This Row],[nasazeni]],tbl_pozice[[#This Row],['# nasazeneho]],RANK(tbl_pozice[[#This Row],[los nenasazenych]],tbl_pozice[los nenasazenych])+rg_počet_nasazených),0) -> 7 | J3: =IFERROR(VLOOKUP(tbl_pozice[[#This Row],[rank = '# hrace]],tbl_seznam_hracu[],2,0),0) -> Marešová Beata
A4: 3 | C4: FALSE | D4: 1 | F4: =IF(rg_pocet_skupin*5>=A4,TRUE,FALSE) -> TRUE | G4: 0.004460059188 | H4: =IF(AND(tbl_pozice[[#This Row],[obsazovana pozice]],NOT(tbl_pozice[[#This Row],[nasazeni]])),tbl_pozice[[#This Row],[los]],0) -> 0.004460059188 | I4: =IF(tbl_pozice[[#This Row],[obsazovana pozice]],IF(tbl_pozice[[#This Row],[nasazeni]],tbl_pozice[[#This Row],['# nasazeneho]],RANK(tbl_pozice[[#This Row],[los nenasazenych]],tbl_pozice[los nenasazenych])+rg_počet_nasazených),0) -> 14 | J4: =IFERROR(VLOOKUP(tbl_pozice[[#This Row],[rank = '# hrace]],tbl_seznam_hracu[],2,0),0) -> Slavíková Tereza
A5: 4 | C5: FALSE | D5: 1 | F5: =IF(rg_pocet_skupin*5>=A5,TRUE,FALSE) -> TRUE | G5: 0.05648735913 | H5: =IF(AND(tbl_pozice[[#This Row],[obsazovana pozice]],NOT(tbl_pozice[[#This Row],[nasazeni]])),tbl_pozice[[#This Row],[los]],0) -> 0.05648735913 | I5: =IF(tbl_pozice[[#This Row],[obsazovana pozice]],IF(tbl_pozice[[#This Row],[nasazeni]],tbl_pozice[[#This Row],['# nasazeneho]],RANK(tbl_pozice[[#This Row],[los nenasazenych]],tbl_pozice[los nenasazenych])+rg_počet_nasazených),0) -> 13 | J5: =IFERROR(VLOOKUP(tbl_pozice[[#This Row],[rank = '# hrace]],tbl_seznam_hracu[],2,0),0) -> Jiráková Sofie
A6: 5 | C6: FALSE | D6: 1 | E6: =IF(tbl_pozice[[#This Row],[skupina]]<=rg_pocet_skupin,rg_pocet_skupin-tbl_pozice[[#This Row],[skupina]]+1,"N/A") -> 3 | F6: =IF(rg_počet_5_ti_členných_skupin>=E6,TRUE,FALSE) -> FALSE | G6: 0.1743500954 | H6: =IF(AND(tbl_pozice[[#This Row],[obsazovana pozice]],NOT(tbl_pozice[[#This Row],[nasazeni]])),tbl_pozice[[#This Row],[los]],0) -> 0 | I6: =IF(tbl_pozice[[#This Row],[obsazovana pozice]],IF(tbl_pozice[[#This Row],[nasazeni]],tbl_pozice[[#This Row],['# nasazeneho]],RANK(tbl_pozice[[#This Row],[los nenasazenych]],tbl_pozice[los nenasazenych])+rg_počet_nasazených),0) -> 0 | J6: =IFERROR(VLOOKUP(tbl_pozice[[#This Row],[rank = '# hrace]],tbl_seznam_hracu[],2,0),0) -> 0
A7: 6 | B7: 2 | C7: =IF(rg_počet_nasazených>=tbl_pozice[[#This Row],['# nasazeneho]],TRUE,FALSE) -> TRUE | D7: 2 | F7: =IF(rg_pocet_skupin*5>=A7,TRUE,FALSE) -> TRUE | G7: 0.9668567976 | H7: =IF(AND(tbl_pozice[[#This Row],[obsazovana pozice]],NOT(tbl_pozice[[#This Row],[nasazeni]])),tbl_pozice[[#This Row],[los]],0) -> 0 | I7: =IF(tbl_pozice[[#This Row],[obsazovana pozice]],IF(tbl_pozice[[#This Row],[nasazeni]],tbl_pozice[[#This Row],['# nasazeneho]],RANK(tbl_pozice[[#This Row],[los nenasazenych]],tbl_pozice[los nenasazenych])+rg_počet_nasazených),0) -> 2 | J7: =IFERROR(VLOOKUP(tbl_pozice[[#This Row],[rank = '# hrace]],tbl_seznam_hracu[],2,0),0) -> Tománková Denisa
A8: 7 | C8: FALSE | D8: 2 | F8: =IF(rg_pocet_skupin*5>=A8,TRUE,FALSE) -> TRUE | G8: 0.8216051788 | H8: =IF(AND(tbl_pozice[[#This Row],[obsazovana pozice]],NOT(tbl_pozice[[#This Row],[nasazeni]])),tbl_pozice[[#This Row],[los]],0) -> 0.8216051788 | I8: =IF(tbl_pozice[[#This Row],[obsazovana pozice]],IF(tbl_pozice[[#This Row],[nasazeni]],tbl_pozice[[#This Row],['# nasazeneho]],RANK(tbl_pozice[[#This Row],[los nenasazenych]],tbl_pozice[los nenasazenych])+rg_počet_nasazených),0) -> 4 | J8: =IFERROR(VLOOKUP(tbl_pozice[[#This Row],[rank = '# hrace]],tbl_seznam_hracu[],2,0),0) -> Michna Lisa
A9: 8 | C9: FALSE | D9: 2 | F9: =IF(rg_pocet_skupin*5>=A9,TRUE,FALSE) -> TRUE | G9: 0.456273277 | H9: =IF(AND(tbl_pozice[[#This Row],[obsazovana pozice]],NOT(tbl_pozice[[#This Row],[nasazeni]])),tbl_pozice[[#This Row],[los]],0) -> 0.456273277 | I9: =IF(tbl_pozice[[#This Row],[obsazovana pozice]],IF(tbl_pozice[[#This Row],[nasazeni]],tbl_pozice[[#This Row],['# nasazeneho]],RANK(tbl_pozice[[#This Row],[los nenasazenych]],tbl_pozice[los nenasazenych])+rg_počet_nasazených),0) -> 11 | J9: =IFERROR(VLOOKUP(tbl_pozice[[#This Row],[rank = '# hrace]],tbl_seznam_hracu[],2,0),0) -> Kolářová Viktorie
A10: 9 | C10: FALSE | D10: 2 | F10: =IF(rg_pocet_skupin*5>=A10,TRUE,FALSE) -> TRUE | G10: 0.4800922637 | H10: =IF(AND(tbl_pozice[[#This Row],[obsazovana pozice]],NOT(tbl_pozice[[#This Row],[nasazeni]])),tbl_pozice[[#This Row],[los]],0) -> 0.4800922637 | I10: =IF(tbl_pozice[[#This Row],[obsazovana pozice]],IF(tbl_pozice[[#This Row],[nasazeni]],tbl_pozice[[#This Row],['# nasazeneho]],RANK(tbl_pozice[[#This Row],[los nenasazenych]],tbl_pozice[los nenasazenych])+rg_počet_nasazených),0) -> 10 | J10: =IFERROR(VLOOKUP(tbl_pozice[[#This Row],[rank = '# hrace]],tbl_seznam_hracu[],2,0),0) -> Krejčíková Viktorie
A11: 10 | C11: FALSE | D11: 2 | E11: =IF(tbl_pozice[[#This Row],[skupina]]<=rg_pocet_skupin,rg_pocet_skupin-tbl_pozice[[#This Row],[skupina]]+1,"N/A") -> 2 | F11: =IF(rg_počet_5_ti_členných_skupin>=E11,TRUE,FALSE) -> TRUE | G11: 0.7197015766 | H11: =IF(AND(tbl_pozice[[#This Row],[obsazovana pozice]],NOT(tbl_pozice[[#This Row],[nasazeni]])),tbl_pozice[[#This Row],[los]],0) -> 0.7197015766 | I11: =IF(tbl_pozice[[#This Row],[obsazovana pozice]],IF(tbl_pozice[[#This Row],[nasazeni]],tbl_pozice[[#This Row],['# nasazeneho]],RANK(tbl_pozice[[#This Row],[los nenasazenych]],tbl_pozice[los nenasazenych])+rg_počet_nasazených),0) -> 6 | J11: =IFERROR(VLOOKUP(tbl_pozice[[#This Row],[rank = '# hrace]],tbl_seznam_hracu[],2,0),0) -> Mottlová Sofie
A12: 11 | B12: 3 | C12: =IF(rg_počet_nasazených>=tbl_pozice[[#This Row],['# nasazeneho]],TRUE,FALSE) -> TRUE | D12: 3 | F12: =IF(rg_pocet_skupin*5>=A12,TRUE,FALSE) -> TRUE | G12: 0.2466798051 | H12: =IF(AND(tbl_pozice[[#This Row],[obsazovana pozice]],NOT(tbl_pozice[[#This Row],[nasazeni]])),tbl_pozice[[#This Row],[los]],0) -> 0 | I12: =IF(tbl_pozice[[#This Row],[obsazovana pozice]],IF(tbl_pozice[[#This Row],[nasazeni]],tbl_pozice[[#This Row],['# nasazeneho]],RANK(tbl_pozice[[#This Row],[los nenasazenych]],tbl_pozice[los nenasazenych])+rg_počet_nasazených),0) -> 3 | J12: =IFERROR(VLOOKUP(tbl_pozice[[#This Row],[rank = '# hrace]],tbl_seznam_hracu[],2,0),0) -> Pěnčíková Tereza
A13: 12 | C13: FALSE | D13: 3 | F13: =IF(rg_pocet_skupin*5>=A13,TRUE,FALSE) -> TRUE | G13: 0.5095074994 | H13: =IF(AND(tbl_pozice[[#This Row],[obsazovana pozice]],NOT(tbl_pozice[[#This Row],[nasazeni]])),tbl_pozice[[#This Row],[los]],0) -> 0.5095074994 | I13: =IF(tbl_pozice[[#This Row],[obsazovana pozice]],IF(tbl_pozice[[#This Row],[nasazeni]],tbl_pozice[[#This Row],['# nasazeneho]],RANK(tbl_pozice[[#This Row],[los nenasazenych]],tbl_pozice[los nenasazenych])+rg_počet_nasazených),0) -> 9 | J13: =IFERROR(VLOOKUP(tbl_pozice[[#This Row],[rank = '# hrace]],tbl_seznam_hracu[],2,0),0) -> Hadrabová Radka
A14: 13 | C14: FALSE | D14: 3 | F14: =IF(rg_pocet_skupin*5>=A14,TRUE,FALSE) -> TRUE | G14: 0.6200085195 | H14: =IF(AND(tbl_pozice[[#This Row],[obsazovana pozice]],NOT(tbl_pozice[[#This Row],[nasazeni]])),tbl_pozice[[#This Row],[los]],0) -> 0.6200085195 | I14: =IF(tbl_pozice[[#This Row],[obsazovana pozice]],IF(tbl_pozice[[#This Row],[nasazeni]],tbl_pozice[[#This Row],['# nasazeneho]],RANK(tbl_pozice[[#This Row],[los nenasazenych]],tbl_pozice[los nenasazenych])+rg_počet_nasazených),0) -> 8 | J14: =IFERROR(VLOOKUP(tbl_pozice[[#This Row],[rank = '# hrace]],tbl_seznam_hracu[],2,0),0) -> Gabrielová Edita Luisa
A15: 14 | C15: FALSE | D15: 3 | F15: =IF(rg_pocet_skupin*5>=A15,TRUE,FALSE) -> TRUE | G15: 0.06982590102 | H15: =IF(AND(tbl_pozice[[#This Row],[obsazovana pozice]],NOT(tbl_pozice[[#This Row],[nasazeni]])),tbl_pozice[[#This Row],[los]],0) -> 0.06982590102 | I15: =IF(tbl_pozice[[#This Row],[obsazovana pozice]],IF(tbl_pozice[[#This Row],[nasazeni]],tbl_pozice[[#This Row],['# nasazeneho]],RANK(tbl_pozice[[#This Row],[los nenasazenych]],tbl_pozice[los nenasazenych])+rg_počet_nasazených),0) -> 12 | J15: =IFERROR(VLOOKUP(tbl_pozice[[#This Row],[rank = '# hrace]],tbl_seznam_hracu[],2,0),0) -> Halfarová Eva
A16: 15 | C16: FALSE | D16: 3 | E16: =IF(tbl_pozice[[#This Row],[skupina]]<=rg_pocet_skupin,rg_pocet_skupin-tbl_pozice[[#This Row],[skupina]]+1,"N/A") -> 1 | F16: =IF(rg_počet_5_ti_členných_skupin>=E16,TRUE,FALSE) -> TRUE | G16: 0.8059775814 | H16: =IF(AND(tbl_pozice[[#This Row],[obsazovana pozice]],NOT(tbl_pozice[[#This Row],[nasazeni]])),tbl_pozice[[#This Row],[los]],0) -> 0.8059775814 | I16: =IF(tbl_pozice[[#This Row],[obsazovana pozice]],IF(tbl_pozice[[#This Row],[nasazeni]],tbl_pozice[[#This Row],['# nasazeneho]],RANK(tbl_pozice[[#This Row],[los nenasazenych]],tbl_pozice[los nenasazenych])+rg_počet_nasazených),0) -> 5 | J16: =IFERROR(VLOOKUP(tbl_pozice[[#This Row],[rank = '# hrace]],tbl_seznam_hracu[],2,0),0) -> Farajpourová Aináz
A17: 16 | B17: 4 | C17: =IF(rg_počet_nasazených>=tbl_pozice[[#This Row],['# nasazeneho]],TRUE,FALSE) -> FALSE | D17: 4 | F17: =IF(rg_pocet_skupin*5>=A17,TRUE,FALSE) -> FALSE | G17: 0.2119869401 | H17: =IF(AND(tbl_pozice[[#This Row],[obsazovana pozice]],NOT(tbl_pozice[[#This Row],[nasazeni]])),tbl_pozice[[#This Row],[los]],0) -> 0 | I17: =IF(tbl_pozice[[#This Row],[obsazovana pozice]],IF(tbl_pozice[[#This Row],[nasazeni]],tbl_pozice[[#This Row],['# nasazeneho]],RANK(tbl_pozice[[#This Row],[los nenasazenych]],tbl_pozice[los nenasazenych])+rg_počet_nasazených),0) -> 0 | J17: =IFERROR(VLOOKUP(tbl_pozice[[#This Row],[rank = '# hrace]],tbl_seznam_hracu[],2,0),0) -> 0
A18: 17 | C18: FALSE | D18: 4 | F18: =IF(rg_pocet_skupin*5>=A18,TRUE,FALSE) -> FALSE | G18: 0.6477594086 | H18: =IF(AND(tbl_pozice[[#This Row],[obsazovana pozice]],NOT(tbl_pozice[[#This Row],[nasazeni]])),tbl_pozice[[#This Row],[los]],0) -> 0 | I18: =IF(tbl_pozice[[#This Row],[obsazovana pozice]],IF(tbl_pozice[[#This Row],[nasazeni]],tbl_pozice[[#This Row],['# nasazeneho]],RANK(tbl_pozice[[#This Row],[los nenasazenych]],tbl_pozice[los nenasazenych])+rg_počet_nasazených),0) -> 0 | J18: =IFERROR(VLOOKUP(tbl_pozice[[#This Row],[rank = '# hrace]],tbl_seznam_hracu[],2,0),0) -> 0
A19: 18 | C19: FALSE | D19: 4 | F19: =IF(rg_pocet_skupin*5>=A19,TRUE,FALSE) -> FALSE | G19: 0.4133025704 | H19: =IF(AND(tbl_pozice[[#This Row],[obsazovana pozice]],NOT(tbl_pozice[[#This Row],[nasazeni]])),tbl_pozice[[#This Row],[los]],0) -> 0 | I19: =IF(tbl_pozice[[#This Row],[obsazovana pozice]],IF(tbl_pozice[[#This Row],[nasazeni]],tbl_pozice[[#This Row],['# nasazeneho]],RANK(tbl_pozice[[#This Row],[los nenasazenych]],tbl_pozice[los nenasazenych])+rg_počet_nasazených),0) -> 0 | J19: =IFERROR(VLOOKUP(tbl_pozice[[#This Row],[rank = '# hrace]],tbl_seznam_hracu[],2,0),0) -> 0
A20: 19 | C20: FALSE | D20: 4 | F20: =IF(rg_pocet_skupin*5>=A20,TRUE,FALSE) -> FALSE | G20: 0.3637867938 | H20: =IF(AND(tbl_pozice[[#This Row],[obsazovana pozice]],NOT(tbl_pozice[[#This Row],[nasazeni]])),tbl_pozice[[#This Row],[los]],0) -> 0 | I20: =IF(tbl_pozice[[#This Row],[obsazovana pozice]],IF(tbl_pozice[[#This Row],[nasazeni]],tbl_pozice[[#This Row],['# nasazeneho]],RANK(tbl_pozice[[#This Row],[los nenasazenych]],tbl_pozice[los nenasazenych])+rg_počet_nasazených),0) -> 0 | J20: =IFERROR(VLOOKUP(tbl_pozice[[#This Row],[rank = '# hrace]],tbl_seznam_hracu[],2,0),0) -> 0
A21: 20 | C21: FALSE | D21: 4 | E21: =IF(tbl_pozice[[#This Row],[skupina]]<=rg_pocet_skupin,rg_pocet_skupin-tbl_pozice[[#This Row],[skupina]]+1,"N/A") -> N/A | F21: =IF(rg_počet_5_ti_členných_skupin>=E21,TRUE,FALSE) -> FALSE | G21: 0.2540511518 | H21: =IF(AND(tbl_pozice[[#This Row],[obsazovana pozice]],NOT(tbl_pozice[[#This Row],[nasazeni]])),tbl_pozice[[#This Row],[los]],0) -> 0 | I21: =IF(tbl_pozice[[#This Row],[obsazovana pozice]],IF(tbl_pozice[[#This Row],[nasazeni]],tbl_pozice[[#This Row],['# nasazeneho]],RANK(tbl_pozice[[#This Row],[los nenasazenych]],tbl_pozice[los nenasazenych])+rg_počet_nasazených),0) -> 0 | J21: =IFERROR(VLOOKUP(tbl_pozice[[#This Row],[rank = '# hrace]],tbl_seznam_hracu[],2,0),0) -> 0
A22: 21 | B22: 5 | C22: =IF(rg_počet_nasazených>=tbl_pozice[[#This Row],['# nasazeneho]],TRUE,FALSE) -> FALSE | D22: 5 | F22: =IF(rg_pocet_skupin*5>=A22,TRUE,FALSE) -> FALSE | G22: 0.09418950412 | H22: =IF(AND(tbl_pozice[[#This Row],[obsazovana pozice]],NOT(tbl_pozice[[#This Row],[nasazeni]])),tbl_pozice[[#This Row],[los]],0) -> 0 | I22: =IF(tbl_pozice[[#This Row],[obsazovana pozice]],IF(tbl_pozice[[#This Row],[nasazeni]],tbl_pozice[[#This Row],['# nasazeneho]],RANK(tbl_pozice[[#This Row],[los nenasazenych]],tbl_pozice[los nenasazenych])+rg_počet_nasazených),0) -> 0 | J22: =IFERROR(VLOOKUP(tbl_pozice[[#This Row],[rank = '# hrace]],tbl_seznam_hracu[],2,0),0) -> 0
A23: 22 | C23: FALSE | D23: 5 | F23: =IF(rg_pocet_skupin*5>=A23,TRUE,FALSE) -> FALSE | G23: 0.1910869423 | H23: =IF(AND(tbl_pozice[[#This Row],[obsazovana pozice]],NOT(tbl_pozice[[#This Row],[nasazeni]])),tbl_pozice[[#This Row],[los]],0) -> 0 | I23: =IF(tbl_pozice[[#This Row],[obsazovana pozice]],IF(tbl_pozice[[#This Row],[nasazeni]],tbl_pozice[[#This Row],['# nasazeneho]],RANK(tbl_pozice[[#This Row],[los nenasazenych]],tbl_pozice[los nenasazenych])+rg_počet_nasazených),0) -> 0 | J23: =IFERROR(VLOOKUP(tbl_pozice[[#This Row],[rank = '# hrace]],tbl_seznam_hracu[],2,0),0) -> 0
A24: 23 | C24: FALSE | D24: 5 | F24: =IF(rg_pocet_skupin*5>=A24,TRUE,FALSE) -> FALSE | G24: 0.3945987581 | H24: =IF(AND(tbl_pozice[[#This Row],[obsazovana pozice]],NOT(tbl_pozice[[#This Row],[nasazeni]])),tbl_pozice[[#This Row],[los]],0) -> 0 | I24: =IF(tbl_pozice[[#This Row],[obsazovana pozice]],IF(tbl_pozice[[#This Row],[nasazeni]],tbl_pozice[[#This Row],['# nasazeneho]],RANK(tbl_pozice[[#This Row],[los nenasazenych]],tbl_pozice[los nenasazenych])+rg_počet_nasazených),0) -> 0 | J24: =IFERROR(VLOOKUP(tbl_pozice[[#This Row],[rank = '# hrace]],tbl_seznam_hracu[],2,0),0) -> 0
A25: 24 | C25: FALSE | D25: 5 | F25: =IF(rg_pocet_skupin*5>=A25,TRUE,FALSE) -> FALSE | G25: 0.8721536236 | H25: =IF(AND(tbl_pozice[[#This Row],[obsazovana pozice]],NOT(tbl_pozice[[#This Row],[nasazeni]])),tbl_pozice[[#This Row],[los]],0) -> 0 | I25: =IF(tbl_pozice[[#This Row],[obsazovana pozice]],IF(tbl_pozice[[#This Row],[nasazeni]],tbl_pozice[[#This Row],['# nasazeneho]],RANK(tbl_pozice[[#This Row],[los nenasazenych]],tbl_pozice[los nenasazenych])+rg_počet_nasazených),0) -> 0 | J25: =IFERROR(VLOOKUP(tbl_pozice[[#This Row],[rank = '# hrace]],tbl_seznam_hracu[],2,0),0) -> 0
A26: 25 | C26: FALSE | D26: 5 | E26: =IF(tbl_pozice[[#This Row],[skupina]]<=rg_pocet_skupin,rg_pocet_skupin-tbl_pozice[[#This Row],[skupina]]+1,"N/A") -> N/A | F26: =IF(rg_počet_5_ti_členných_skupin>=E26,TRUE,FALSE) -> FALSE | G26: 0.7314096475 | H26: =IF(AND(tbl_pozice[[#This Row],[obsazovana pozice]],NOT(tbl_pozice[[#This Row],[nasazeni]])),tbl_pozice[[#This Row],[los]],0) -> 0 | I26: =IF(tbl_pozice[[#This Row],[obsazovana pozice]],IF(tbl_pozice[[#This Row],[nasazeni]],tbl_pozice[[#This Row],['# nasazeneho]],RANK(tbl_pozice[[#This Row],[los nenasazenych]],tbl_pozice[los nenasazenych])+rg_počet_nasazených),0) -> 0 | J26: =IFERROR(VLOOKUP(tbl_pozice[[#This Row],[rank = '# hrace]],tbl_seznam_hracu[],2,0),0) -> 0
A27: 26 | B27: 6 | C27: =IF(rg_počet_nasazených>=tbl_pozice[[#This Row],['# nasazeneho]],TRUE,FALSE) -> FALSE | D27: 6 | F27: =IF(rg_pocet_skupin*5>=A27,TRUE,FALSE) -> FALSE | G27: 0.02825637985 | H27: =IF(AND(tbl_pozice[[#This Row],[obsazovana pozice]],NOT(tbl_pozice[[#This Row],[nasazeni]])),tbl_pozice[[#This Row],[los]],0) -> 0 | I27: =IF(tbl_pozice[[#This Row],[obsazovana pozice]],IF(tbl_pozice[[#This Row],[nasazeni]],tbl_pozice[[#This Row],['# nasazeneho]],RANK(tbl_pozice[[#This Row],[los nenasazenych]],tbl_pozice[los nenasazenych])+rg_počet_nasazených),0) -> 0 | J27: =IFERROR(VLOOKUP(tbl_pozice[[#This Row],[rank = '# hrace]],tbl_seznam_hracu[],2,0),0) -> 0
A28: 27 | C28: FALSE | D28: 6 | F28: =IF(rg_pocet_skupin*5>=A28,TRUE,FALSE) -> FALSE | G28: 0.9707167521 | H28: =IF(AND(tbl_pozice[[#This Row],[obsazovana pozice]],NOT(tbl_pozice[[#This Row],[nasazeni]])),tbl_pozice[[#This Row],[los]],0) -> 0 | I28: =IF(tbl_pozice[[#This Row],[obsazovana pozice]],IF(tbl_pozice[[#This Row],[nasazeni]],tbl_pozice[[#This Row],['# nasazeneho]],RANK(tbl_pozice[[#This Row],[los nenasazenych]],tbl_pozice[los nenasazenych])+rg_počet_nasazených),0) -> 0 | J28: =IFERROR(VLOOKUP(tbl_pozice[[#This Row],[rank = '# hrace]],tbl_seznam_hracu[],2,0),0) -> 0
A29: 28 | C29: FALSE | D29: 6 | F29: =IF(rg_pocet_skupin*5>=A29,TRUE,FALSE) -> FALSE | G29: 0.3456372934 | H29: =IF(AND(tbl_pozice[[#This Row],[obsazovana pozice]],NOT(tbl_pozice[[#This Row],[nasazeni]])),tbl_pozice[[#This Row],[los]],0) -> 0 | I29: =IF(tbl_pozice[[#This Row],[obsazovana pozice]],IF(tbl_pozice[[#This Row],[nasazeni]],tbl_pozice[[#This Row],['# nasazeneho]],RANK(tbl_pozice[[#This Row],[los nenasazenych]],tbl_pozice[los nenasazenych])+rg_počet_nasazených),0) -> 0 | J29: =IFERROR(VLOOKUP(tbl_pozice[[#This Row],[rank = '# hrace]],tbl_seznam_hracu[],2,0),0) -> 0
A30: 29 | C30: FALSE | D30: 6 | F30: =IF(rg_pocet_skupin*5>=A30,TRUE,FALSE) -> FALSE | G30: 0.2628035486 | H30: =IF(AND(tbl_pozice[[#This Row],[obsazovana pozice]],NOT(tbl_pozice[[#This Row],[nasazeni]])),tbl_pozice[[#This Row],[los]],0) -> 0 | I30: =IF(tbl_pozice[[#This Row],[obsazovana pozice]],IF(tbl_pozice[[#This Row],[nasazeni]],tbl_pozice[[#This Row],['# nasazeneho]],RANK(tbl_pozice[[#This Row],[los nenasazenych]],tbl_pozice[los nenasazenych])+rg_počet_nasazených),0) -> 0 | J30: =IFERROR(VLOOKUP(tbl_pozice[[#This Row],[rank = '# hrace]],tbl_seznam_hracu[],2,0),0) -> 0
A31: 30 | C31: FALSE | D31: 6 | E31: =IF(tbl_pozice[[#This Row],[skupina]]<=rg_pocet_skupin,rg_pocet_skupin-tbl_pozice[[#This Row],[skupina]]+1,"N/A") -> N/A | F31: =IF(rg_počet_5_ti_členných_skupin>=E31,TRUE,FALSE) -> FALSE | G31: 0.1902834393 | H31: =IF(AND(tbl_pozice[[#This Row],[obsazovana pozice]],NOT(tbl_pozice[[#This Row],[nasazeni]])),tbl_pozice[[#This Row],[los]],0) -> 0 | I31: =IF(tbl_pozice[[#This Row],[obsazovana pozice]],IF(tbl_pozice[[#This Row],[nasazeni]],tbl_pozice[[#This Row],['# nasazeneho]],RANK(tbl_pozice[[#This Row],[los nenasazenych]],tbl_pozice[los nenasazenych])+rg_počet_nasazených),0) -> 0 | J31: =IFERROR(VLOOKUP(tbl_pozice[[#This Row],[rank = '# hrace]],tbl_seznam_hracu[],2,0),0) -> 0
A32: 31 | B32: 7 | C32: =IF(rg_počet_nasazených>=tbl_pozice[[#This Row],['# nasazeneho]],TRUE,FALSE) -> FALSE | D32: 7 | F32: =IF(rg_pocet_skupin*5>=A32,TRUE,FALSE) -> FALSE | G32: 0.7118715577 | H32: =IF(AND(tbl_pozice[[#This Row],[obsazovana pozice]],NOT(tbl_pozice[[#This Row],[nasazeni]])),tbl_pozice[[#This Row],[los]],0) -> 0 | I32: =IF(tbl_pozice[[#This Row],[obsazovana pozice]],IF(tbl_pozice[[#This Row],[nasazeni]],tbl_pozice[[#This Row],['# nasazeneho]],RANK(tbl_pozice[[#This Row],[los nenasazenych]],tbl_pozice[los nenasazenych])+rg_počet_nasazených),0) -> 0 | J32: =IFERROR(VLOOKUP(tbl_pozice[[#This Row],[rank = '# hrace]],tbl_seznam_hracu[],2,0),0) -> 0
A33: 32 | C33: FALSE | D33: 7 | F33: =IF(rg_pocet_skupin*5>=A33,TRUE,FALSE) -> FALSE | G33: 0.06116154716 | H33: =IF(AND(tbl_pozice[[#This Row],[obsazovana pozice]],NOT(tbl_pozice[[#This Row],[nasazeni]])),tbl_pozice[[#This Row],[los]],0) -> 0 | I33: =IF(tbl_pozice[[#This Row],[obsazovana pozice]],IF(tbl_pozice[[#This Row],[nasazeni]],tbl_pozice[[#This Row],['# nasazeneho]],RANK(tbl_pozice[[#This Row],[los nenasazenych]],tbl_pozice[los nenasazenych])+rg_počet_nasazených),0) -> 0 | J33: =IFERROR(VLOOKUP(tbl_pozice[[#This Row],[rank = '# hrace]],tbl_seznam_hracu[],2,0),0) -> 0
A34: 33 | C34: FALSE | D34: 7 | F34: =IF(rg_pocet_skupin*5>=A34,TRUE,FALSE) -> FALSE | G34: 0.9597650532 | H34: =IF(AND(tbl_pozice[[#This Row],[obsazovana pozice]],NOT(tbl_pozice[[#This Row],[nasazeni]])),tbl_pozice[[#This Row],[los]],0) -> 0 | I34: =IF(tbl_pozice[[#This Row],[obsazovana pozice]],IF(tbl_pozice[[#This Row],[nasazeni]],tbl_pozice[[#This Row],['# nasazeneho]],RANK(tbl_pozice[[#This Row],[los nenasazenych]],tbl_pozice[los nenasazenych])+rg_počet_nasazených),0) -> 0 | J34: =IFERROR(VLOOKUP(tbl_pozice[[#This Row],[rank = '# hrace]],tbl_seznam_hracu[],2,0),0) -> 0
A35: 34 | C35: FALSE | D35: 7 | F35: =IF(rg_pocet_skupin*5>=A35,TRUE,FALSE) -> FALSE | G35: 0.6740890832 | H35: =IF(AND(tbl_pozice[[#This Row],[obsazovana pozice]],NOT(tbl_pozice[[#This Row],[nasazeni]])),tbl_pozice[[#This Row],[los]],0) -> 0 | I35: =IF(tbl_pozice[[#This Row],[obsazovana pozice]],IF(tbl_pozice[[#This Row],[nasazeni]],tbl_pozice[[#This Row],['# nasazeneho]],RANK(tbl_pozice[[#This Row],[los nenasazenych]],tbl_pozice[los nenasazenych])+rg_počet_nasazených),0) -> 0 | J35: =IFERROR(VLOOKUP(tbl_pozice[[#This Row],[rank = '# hrace]],tbl_seznam_hracu[],2,0),0) -> 0
A36: 35 | C36: FALSE | D36: 7 | E36: =IF(tbl_pozice[[#This Row],[skupina]]<=rg_pocet_skupin,rg_pocet_skupin-tbl_pozice[[#This Row],[skupina]]+1,"N/A") -> N/A | F36: =IF(rg_počet_5_ti_členných_skupin>=E36,TRUE,FALSE) -> FALSE | G36: 0.8511567524 | H36: =IF(AND(tbl_pozice[[#This Row],[obsazovana pozice]],NOT(tbl_pozice[[#This Row],[nasazeni]])),tbl_pozice[[#This Row],[los]],0) -> 0 | I36: =IF(tbl_pozice[[#This Row],[obsazovana pozice]],IF(tbl_pozice[[#This Row],[nasazeni]],tbl_pozice[[#This Row],['# nasazeneho]],RANK(tbl_pozice[[#This Row],[los nenasazenych]],tbl_pozice[los nenasazenych])+rg_počet_nasazených),0) -> 0 | J36: =IFERROR(VLOOKUP(tbl_pozice[[#This Row],[rank = '# hrace]],tbl_seznam_hracu[],2,0),0) -> 0
A37: 36 | B37: 8 | C37: =IF(rg_počet_nasazených>=tbl_pozice[[#This Row],['# nasazeneho]],TRUE,FALSE) -> FALSE | D37: 8 | F37: =IF(rg_pocet_skupin*5>=A37,TRUE,FALSE) -> FALSE | G37: 0.841951049 | H37: =IF(AND(tbl_pozice[[#This Row],[obsazovana pozice]],NOT(tbl_pozice[[#This Row],[nasazeni]])),tbl_pozice[[#This Row],[los]],0) -> 0 | I37: =IF(tbl_pozice[[#This Row],[obsazovana pozice]],IF(tbl_pozice[[#This Row],[nasazeni]],tbl_pozice[[#This Row],['# nasazeneho]],RANK(tbl_pozice[[#This Row],[los nenasazenych]],tbl_pozice[los nenasazenych])+rg_počet_nasazených),0) -> 0 | J37: =IFERROR(VLOOKUP(tbl_pozice[[#This Row],[rank = '# hrace]],tbl_seznam_hracu[],2,0),0) -> 0
A38: 37 | C38: FALSE | D38: 8 | F38: =IF(rg_pocet_skupin*5>=A38,TRUE,FALSE) -> FALSE | G38: 0.9539534006 | H38: =IF(AND(tbl_pozice[[#This Row],[obsazovana pozice]],NOT(tbl_pozice[[#This Row],[nasazeni]])),tbl_pozice[[#This Row],[los]],0) -> 0 | I38: =IF(tbl_pozice[[#This Row],[obsazovana pozice]],IF(tbl_pozice[[#This Row],[nasazeni]],tbl_pozice[[#This Row],['# nasazeneho]],RANK(tbl_pozice[[#This Row],[los nenasazenych]],tbl_pozice[los nenasazenych])+rg_počet_nasazených),0) -> 0 | J38: =IFERROR(VLOOKUP(tbl_pozice[[#This Row],[rank = '# hrace]],tbl_seznam_hracu[],2,0),0) -> 0
A39: 38 | C39: FALSE | D39: 8 | F39: =IF(rg_pocet_skupin*5>=A39,TRUE,FALSE) -> FALSE | G39: 0.9834174805 | H39: =IF(AND(tbl_pozice[[#This Row],[obsazovana pozice]],NOT(tbl_pozice[[#This Row],[nasazeni]])),tbl_pozice[[#This Row],[los]],0) -> 0 | I39: =IF(tbl_pozice[[#This Row],[obsazovana pozice]],IF(tbl_pozice[[#This Row],[nasazeni]],tbl_pozice[[#This Row],['# nasazeneho]],RANK(tbl_pozice[[#This Row],[los nenasazenych]],tbl_pozice[los nenasazenych])+rg_počet_nasazených),0) -> 0 | J39: =IFERROR(VLOOKUP(tbl_pozice[[#This Row],[rank = '# hrace]],tbl_seznam_hracu[],2,0),0) -> 0
A40: 39 | C40: FALSE | D40: 8 | F40: =IF(rg_pocet_skupin*5>=A40,TRUE,FALSE) -> FALSE | G40: 0.5362611227 | H40: =IF(AND(tbl_pozice[[#This Row],[obsazovana pozice]],NOT(tbl_pozice[[#This Row],[nasazeni]])),tbl_pozice[[#This Row],[los]],0) -> 0 | I40: =IF(tbl_pozice[[#This Row],[obsazovana pozice]],IF(tbl_pozice[[#This Row],[nasazeni]],tbl_pozice[[#This Row],['# nasazeneho]],RANK(tbl_pozice[[#This Row],[los nenasazenych]],tbl_pozice[los nenasazenych])+rg_počet_nasazených),0) -> 0 | J40: =IFERROR(VLOOKUP(tbl_pozice[[#This Row],[rank = '# hrace]],tbl_seznam_hracu[],2,0),0) -> 0
A41: 40 | C41: FALSE | D41: 8 | E41: =IF(tbl_pozice[[#This Row],[skupina]]<=rg_pocet_skupin,rg_pocet_skupin-tbl_pozice[[#This Row],[skupina]]+1,"N/A") -> N/A | F41: =IF(rg_počet_5_ti_členných_skupin>=E41,TRUE,FALSE) -> FALSE | G41: 0.9334006667 | H41: =IF(AND(tbl_pozice[[#This Row],[obsazovana pozice]],NOT(tbl_pozice[[#This Row],[nasazeni]])),tbl_pozice[[#This Row],[los]],0) -> 0 | I41: =IF(tbl_pozice[[#This Row],[obsazovana pozice]],IF(tbl_pozice[[#This Row],[nasazeni]],tbl_pozice[[#This Row],['# nasazeneho]],RANK(tbl_pozice[[#This Row],[los nenasazenych]],tbl_pozice[los nenasazenych])+rg_počet_nasazených),0) -> 0 | J41: =IFERROR(VLOOKUP(tbl_pozice[[#This Row],[rank = '# hrace]],tbl_seznam_hracu[],2,0),0) -> 0
A42: 41 | B42: 9 | C42: =IF(rg_počet_nasazených>=tbl_pozice[[#This Row],['# nasazeneho]],TRUE,FALSE) -> FALSE | D42: 9 | F42: =IF(rg_pocet_skupin*5>=A42,TRUE,FALSE) -> FALSE | G42: 0.9454082993 | H42: =IF(AND(tbl_pozice[[#This Row],[obsazovana pozice]],NOT(tbl_pozice[[#This Row],[nasazeni]])),tbl_pozice[[#This Row],[los]],0) -> 0 | I42: =IF(tbl_pozice[[#This Row],[obsazovana pozice]],IF(tbl_pozice[[#This Row],[nasazeni]],tbl_pozice[[#This Row],['# nasazeneho]],RANK(tbl_pozice[[#This Row],[los nenasazenych]],tbl_pozice[los nenasazenych])+rg_počet_nasazených),0) -> 0 | J42: =IFERROR(VLOOKUP(tbl_pozice[[#This Row],[rank = '# hrace]],tbl_seznam_hracu[],2,0),0) -> 0
A43: 42 | C43: FALSE | D43: 9 | F43: =IF(rg_pocet_skupin*5>=A43,TRUE,FALSE) -> FALSE | G43: 0.07313842329 | H43: =IF(AND(tbl_pozice[[#This Row],[obsazovana pozice]],NOT(tbl_pozice[[#This Row],[nasazeni]])),tbl_pozice[[#This Row],[los]],0) -> 0 | I43: =IF(tbl_pozice[[#This Row],[obsazovana pozice]],IF(tbl_pozice[[#This Row],[nasazeni]],tbl_pozice[[#This Row],['# nasazeneho]],RANK(tbl_pozice[[#This Row],[los nenasazenych]],tbl_pozice[los nenasazenych])+rg_počet_nasazených),0) -> 0 | J43: =IFERROR(VLOOKUP(tbl_pozice[[#This Row],[rank = '# hrace]],tbl_seznam_hracu[],2,0),0) -> 0
A44: 43 | C44: FALSE | D44: 9 | F44: =IF(rg_pocet_skupin*5>=A44,TRUE,FALSE) -> FALSE | G44: 0.1038376849 | H44: =IF(AND(tbl_pozice[[#This Row],[obsazovana pozice]],NOT(tbl_pozice[[#This Row],[nasazeni]])),tbl_pozice[[#This Row],[los]],0) -> 0 | I44: =IF(tbl_pozice[[#This Row],[obsazovana pozice]],IF(tbl_pozice[[#This Row],[nasazeni]],tbl_pozice[[#This Row],['# nasazeneho]],RANK(tbl_pozice[[#This Row],[los nenasazenych]],tbl_pozice[los nenasazenych])+rg_počet_nasazených),0) -> 0 | J44: =IFERROR(VLOOKUP(tbl_pozice[[#This Row],[rank = '# hrace]],tbl_seznam_hracu[],2,0),0) -> 0
A45: 44 | C45: FALSE | D45: 9 | F45: =IF(rg_pocet_skupin*5>=A45,TRUE,FALSE) -> FALSE | G45: 0.6776978975 | H45: =IF(AND(tbl_pozice[[#This Row],[obsazovana pozice]],NOT(tbl_pozice[[#This Row],[nasazeni]])),tbl_pozice[[#This Row],[los]],0) -> 0 | I45: =IF(tbl_pozice[[#This Row],[obsazovana pozice]],IF(tbl_pozice[[#This Row],[nasazeni]],tbl_pozice[[#This Row],['# nasazeneho]],RANK(tbl_pozice[[#This Row],[los nenasazenych]],tbl_pozice[los nenasazenych])+rg_počet_nasazených),0) -> 0 | J45: =IFERROR(VLOOKUP(tbl_pozice[[#This Row],[rank = '# hrace]],tbl_seznam_hracu[],2,0),0) -> 0
A46: 45 | C46: FALSE | D46: 9 | E46: =IF(tbl_pozice[[#This Row],[skupina]]<=rg_pocet_skupin,rg_pocet_skupin-tbl_pozice[[#This Row],[skupina]]+1,"N/A") -> N/A | F46: =IF(rg_počet_5_ti_členných_skupin>=E46,TRUE,FALSE) -> FALSE | G46: 0.6927602501 | H46: =IF(AND(tbl_pozice[[#This Row],[obsazovana pozice]],NOT(tbl_pozice[[#This Row],[nasazeni]])),tbl_pozice[[#This Row],[los]],0) -> 0 | I46: =IF(tbl_pozice[[#This Row],[obsazovana pozice]],IF(tbl_pozice[[#This Row],[nasazeni]],tbl_pozice[[#This Row],['# nasazeneho]],RANK(tbl_pozice[[#This Row],[los nenasazenych]],tbl_pozice[los nenasazenych])+rg_počet_nasazených),0) -> 0 | J46: =IFERROR(VLOOKUP(tbl_pozice[[#This Row],[rank = '# hrace]],tbl_seznam_hracu[],2,0),0) -> 0
A47: 46 | B47: 10 | C47: =IF(rg_počet_nasazených>=tbl_pozice[[#This Row],['# nasazeneho]],TRUE,FALSE) -> FALSE | D47: 10 | F47: =IF(rg_pocet_skupin*5>=A47,TRUE,FALSE) -> FALSE | G47: 0.5506907675 | H47: =IF(AND(tbl_pozice[[#This Row],[obsazovana pozice]],NOT(tbl_pozice[[#This Row],[nasazeni]])),tbl_pozice[[#This Row],[los]],0) -> 0 | I47: =IF(tbl_pozice[[#This Row],[obsazovana pozice]],IF(tbl_pozice[[#This Row],[nasazeni]],tbl_pozice[[#This Row],['# nasazeneho]],RANK(tbl_pozice[[#This Row],[los nenasazenych]],tbl_pozice[los nenasazenych])+rg_počet_nasazených),0) -> 0 | J47: =IFERROR(VLOOKUP(tbl_pozice[[#This Row],[rank = '# hrace]],tbl_seznam_hracu[],2,0),0) -> 0
A48: 47 | C48: FALSE | D48: 10 | F48: =IF(rg_pocet_skupin*5>=A48,TRUE,FALSE) -> FALSE | G48: 0.5804986679 | H48: =IF(AND(tbl_pozice[[#This Row],[obsazovana pozice]],NOT(tbl_pozice[[#This Row],[nasazeni]])),tbl_pozice[[#This Row],[los]],0) -> 0 | I48: =IF(tbl_pozice[[#This Row],[obsazovana pozice]],IF(tbl_pozice[[#This Row],[nasazeni]],tbl_pozice[[#This Row],['# nasazeneho]],RANK(tbl_pozice[[#This Row],[los nenasazenych]],tbl_pozice[los nenasazenych])+rg_počet_nasazených),0) -> 0 | J48: =IFERROR(VLOOKUP(tbl_pozice[[#This Row],[rank = '# hrace]],tbl_seznam_hracu[],2,0),0) -> 0
A49: 48 | C49: FALSE | D49: 10 | F49: =IF(rg_pocet_skupin*5>=A49,TRUE,FALSE) -> FALSE | G49: 0.8552053379 | H49: =IF(AND(tbl_pozice[[#This Row],[obsazovana pozice]],NOT(tbl_pozice[[#This Row],[nasazeni]])),tbl_pozice[[#This Row],[los]],0) -> 0 | I49: =IF(tbl_pozice[[#This Row],[obsazovana pozice]],IF(tbl_pozice[[#This Row],[nasazeni]],tbl_pozice[[#This Row],['# nasazeneho]],RANK(tbl_pozice[[#This Row],[los nenasazenych]],tbl_pozice[los nenasazenych])+rg_počet_nasazených),0) -> 0 | J49: =IFERROR(VLOOKUP(tbl_pozice[[#This Row],[rank = '# hrace]],tbl_seznam_hracu[],2,0),0) -> 0
A50: 49 | C50: FALSE | D50: 10 | F50: =IF(rg_pocet_skupin*5>=A50,TRUE,FALSE) -> FALSE | G50: 0.8923644296 | H50: =IF(AND(tbl_pozice[[#This Row],[obsazovana pozice]],NOT(tbl_pozice[[#This Row],[nasazeni]])),tbl_pozice[[#This Row],[los]],0) -> 0 | I50: =IF(tbl_pozice[[#This Row],[obsazovana pozice]],IF(tbl_pozice[[#This Row],[nasazeni]],tbl_pozice[[#This Row],['# nasazeneho]],RANK(tbl_pozice[[#This Row],[los nenasazenych]],tbl_pozice[los nenasazenych])+rg_počet_nasazených),0) -> 0 | J50: =IFERROR(VLOOKUP(tbl_pozice[[#This Row],[rank = '# hrace]],tbl_seznam_hracu[],2,0),0) -> 0
A51: 50 | C51: FALSE | D51: 10 | E51: =IF(tbl_pozice[[#This Row],[skupina]]<=rg_pocet_skupin,rg_pocet_skupin-tbl_pozice[[#This Row],[skupina]]+1,"N/A") -> N/A | F51: =IF(rg_počet_5_ti_členných_skupin>=E51,TRUE,FALSE) -> FALSE | G51: 0.9374966343 | H51: =IF(AND(tbl_pozice[[#This Row],[obsazovana pozice]],NOT(tbl_pozice[[#This Row],[nasazeni]])),tbl_pozice[[#This Row],[los]],0) -> 0 | I51: =IF(tbl_pozice[[#This Row],[obsazovana pozice]],IF(tbl_pozice[[#This Row],[nasazeni]],tbl_pozice[[#This Row],['# nasazeneho]],RANK(tbl_pozice[[#This Row],[los nenasazenych]],tbl_pozice[los nenasazenych])+rg_počet_nasazených),0) -> 0 | J51: =IFERROR(VLOOKUP(tbl_pozice[[#This Row],[rank = '# hrace]],tbl_seznam_hracu[],2,0),0) -> 0

Sheet Tabulky
A1: 0
A2: Skupina A - kurt | C2: Jelínková Adéla | D2: Marešová Beata | E2: Slavíková Tereza | F2: Jiráková Sofie | G2: Pořadí | H2: Počet vítězství
A3: A1 | B3: Jelínková Adéla | D3: 4-0 | E3: 4-0 | F3: 4-0 | G3: 1. | H3: 3
A4: A2 | B4: Marešová Beata | C4: 0-4 | E4: 4-1 | F4: 4-3 | G4: 2. | H4: 2
A5: A3 | B5: Slavíková Tereza | C5: 0-4 | D5: 1-4 | F5: 2-4 | G5: 4. | H5: 0
A6: A4 | B6: Jiráková Sofie | C6: 0-4 | D6: 3-4 | E6: 4-2 | G6: 3. | H6: 1
A8: Skupina B - kurt | C8: Tománková Denisa | D8: Michna Lisa | E8: Kolářová Viktorie | F8: Krejčíková Viktorie | G8: Mottlová Sofie | H8: Pořadí | I8: Počet vítězství
A9: B1 | B9: Tománková Denisa | D9: 4-1 | E9: 4-0 | F9: 2-4 | G9: 1-4 | H9: 3. | I9: 2
A10: B2 | B10: Michna Lisa | C10: 1-4 | E10: 4-0 | F10: 0-4 | G10: 0-4 | H10: 4. | I10: 1
A11: B3 | B11: Kolářová Viktorie | C11: 0-4 | D11: 0-4 | F11: 0-4 | G11: 1-4 | H11: 5. | I11: 0
A12: B4 | B12: Krejčíková Viktorie | C12: 4-2 | D12: 4-0 | E12: 4-0 | G12: 4-3 | H12: 1. | I12: 4
A13: B5 | B13: Mottlová Sofie | C13: 4-1 | D13: 4-0 | E13: 4-1 | F13: 3-4 | H13: 2. | I13: 3
A15: Skupina C - kurt | C15: Pěnčíková Tereza | D15: Hadrabová Radka | E15: Gabrielová Edita Luisa | F15: Halfarová Eva | G15: Farajpourová Aináz | H15: Pořadí | I15: Počet vítězství
A16: C1 | B16: Pěnčíková Tereza | D16: 4-2 | E16: 4-3 | F16: 4-0 | G16: 4-1 | H16: 1. | I16: 4
A17: C2 | B17: Hadrabová Radka | C17: 2-4 | E17: 4-1 | F17: 4-2 | G17: 3-4 | H17: 3. | I17: 2
A18: C3 | B18: Gabrielová Edita Luisa | C18: 3-4 | D18: 1-4 | F18: 3-4 | G18: 1-4 | H18: 5. | I18: 0
A19: C4 | B19: Halfarová Eva | C19: 0-4 | D19: 2-4 | E19: 4-3 | G19: 1-4 | H19: 4. | I19: 1
A20: C5 | B20: Farajpourová Aináz | C20: 1-4 | D20: 4-3 | E20: 4-1 | F20: 4-1 | H20: 2. | I20: 3
A22: Skupina D - kurt | C22: 0 | D22: 0 | E22: 0 | F22: 0 | G22: 0 | H22: Pořadí | I22: Počet vítězství
A23: D1 | B23: 0 | D23: 4-2 | E23: 4-0 | F23: 4-0 | G23: 0 | H23: 1. | I23: 3
A24: D2 | B24: 0 | C24: 2-4 | E24: 4-2 | F24: 1-4 | G24: 0 | H24: 3. | I24: 1
A25: D3 | B25: 0 | C25: 0-4 | D25: 2-4 | F25: 0-4 | G25: 0 | H25: 4. | I25: 0
A26: D4 | B26: 0 | C26: 0-4 | D26: 4-1 | E26: 4-0 | G26: 0 | H26: 2. | I26: 2
A27: D5 | B27: 0
A29: Skupina E - kurt | C29: 0 | D29: 0 | E29: 0 | F29: 0 | G29: 0 | H29: Pořadí | I29: Počet vítězství
A30: E1 | B30: 0 | D30: 4-0 | E30: 4-0 | F30: 4-0 | G30: 4-1 | H30: 1. | I30: 4
A31: E2 | B31: 0 | C31: 0-4 | E31: 4-1 | F31: 4-0 | G31: 4-3 | H31: 2. | I31: 3
A32: E3 | B32: 0 | C32: 0-4 | D32: 1-4 | F32: 4-0 | G32: 0-4 | H32: 4. | I32: 1
A33: E4 | B33: 0 | C33: 0-4 | D33: 0-4 | E33: 0-4 | G33: 0-4 | H33: 5. | I33: 0
A34: E5 | B34: 0 | C34: 1-4 | D34: 3-4 | E34: 4-0 | F34: 4-0 | H34: 3. | I34: 2
A36: Skupina F - kurt | C36: 0 | D36: 0 | E36: 0 | F36: 0 | G36: 0 | H36: Pořadí | I36: Počet vítězství
A37: F1 | B37: 0 | D37: 0 | E37: 0 | F37: 0 | G37: 0
A38: F2 | B38: 0 | E38: 0 | F38: 0 | G38: 0
A39: F3 | B39: 0 | F39: 0 | G39: 0
A40: F4 | B40: 0 | G40: 0
A41: F5 | B41: 0
A43: Skupina G - kurt | C43: 0 | D43: 0 | E43: 0 | F43: 0 | G43: 0 | H43: Pořadí | I43: Počet vítězství
A44: G1 | B44: 0 | D44: 0 | E44: 0 | F44: 0 | G44: 0
A45: G2 | B45: 0 | E45: 0 | F45: 0 | G45: 0
A46: G3 | B46: 0 | F46: 0 | G46: 0
A47: G4 | B47: 0 | G47: 0
A48: G5 | B48: 0
A50: Skupina H - kurt | C50: 0 | D50: 0 | E50: 0 | F50: 0 | G50: 0 | H50: Pořadí | I50: Počet vítězství
A51: H1 | B51: 0 | D51: 0 | E51: 0 | F51: 0 | G51: 0
A52: H2 | B52: 0 | E52: 0 | F52: 0 | G52: 0
A53: H3 | B53: 0 | F53: 0 | G53: 0
A54: H4 | B54: 0 | G54: 0
A55: H5 | B55: 0
A57: Skupina I - kurt | C57: 0 | D57: 0 | E57: 0 | F57: 0 | G57: 0 | H57: Pořadí | I57: Počet vítězství
A58: I1 | B58: 0 | D58: 0 | E58: 0 | F58: 0 | G58: 0
A59: I2 | B59: 0 | E59: 0 | F59: 0 | G59: 0
A60: I3 | B60: 0 | F60: 0 | G60: 0
A61: I4 | B61: 0 | G61: 0
A62: I5 | B62: 0
A64: Skupina J - kurt | C64: 0 | D64: 0 | E64: 0 | F64: 0 | G64: 0 | H64: Pořadí | I64: Počet vítězství
A65: J1 | B65: 0 | D65: 0 | E65: 0 | F65: 0 | G65: 0
A66: J2 | B66: 0 | E66: 0 | F66: 0 | G66: 0
A67: J3 | B67: 0 | F67: 0 | G67: 0
A68: J4 | B68: 0 | G68: 0
A69: J5 | B69: 0

Sheet Pavouk
C6: Jelínková Adéla
D10: Jelíková Adéla
D11: 4.2
B12: Pěnčíková Tereza
C14: Pěnčíková Tereza
C15: 4-3
B16: Mottlová Sofie
D18: Farajpourová Aináz
D19: 4-0
B20: Marešová Beata
C22: Farajpourová Aináz
C23: 4-2
B24: Farajpourová Aináz
D26: Farajpourová Aináz
C30: Krejčíková Viktorie

Sheet Pořadí
A1: POŘADÍ - SPARTA HEAD BABYTENIS TOUR ZIMA 2020 - DÍVKY
A24: Pořadí | B24: Příjmení | C24: 1. turnaj | D24: 2. turnaj | E24: 3. turnaj | F24: 4. turnaj | G24: Masters | H24: Celkem
A25: 1. | B25: Jelínková Adéla | C25: 100 | D25: 300 | E25: 300 | F25: 250 | H25: =SUM(C25:G25) -> 950
A26: 2. | B26: Farajpourová Aináz | C26: 200 | D26: 100 | E26: 100 | F26: 300 | H26: =SUM(C26:G26) -> 700
A27: 3. | B27: Pěnčíková Tereza | C27: 250 | D27: 200 | E27: 0 | F27: 200 | H27: 650
A28: 4. | B28: Krejčíková Viktorie | C28: 50 | D28: 100 | E28: 250 | F28: 200 | H28: =SUM(C28:G28) -> 600
A29: 5. | B29: Tománková Denisa | C29: 300 | D29: 250 | E29: 0 | F29: 20 | H29: 570
A30: 6. | B30: Mottlová Sofie | C30: 200 | D30: 200 | E30: 0 | F30: 100 | H30: 500
A31: 7. | B31: Michna Lisa | C31: 100 | D31: 100 | E31: 200 | F31: 10 | H31: =SUM(C31:G31) -> 410
A32: 8. | B32: Staňková Laura | C32: 100 | D32: 100 | E32: 100 | F32: 0 | H32: =SUM(C32:G32) -> 300
A33: 9. | B33: Hadrabová Radka | C33: 0 | D33: 20 | E33: 200 | F33: 20 | H33: =SUM(C33:G33) -> 240
A34: 10. | B34: Halfarová Eva | C34: 0 | D34: 50 | E34: 100 | F34: 10 | H34: =SUM(C34:G34) -> 160
A35: 11. | B35: Marešová Beata | C35: 20 | D35: 0 | E35: 20 | F35: 100 | H35: =SUM(C35:G35) -> 140
A36: 12 | B36: Slavíková Tereza | C36: 20 | D36: 0 | E36: 100 | F36: 10 | H36: =SUM(C36:G36) -> 130
A37: 13.-14 | B37: Tvrzská Amélie | C37: 50 | D37: 50 | E37: 20 | F37: 0 | H37: =SUM(C37:G37) -> 120
B38: Blažková Barbora | C38: 50 | D38: 20 | E38: 50 | F38: 0 | H38: =SUM(C38:G38) -> 120
A39: 15. | B39: Drábová Sára | C39: 100 | D39: 0 | E39: 0 | F39: 0 | H39: =C39+D39 -> 100
A40: 16. | B40: Střihavková Nela | C40: 50 | D40: 20 | E40: 20 | F40: 0 | H40: =SUM(C40:G40) -> 90
A41: 17. | B41: Svoboda Adéla | C41: 50 | D41: 10 | E41: 10 | F41: 0 | H41: =SUM(C41:G41) -> 70
A42: 18.-19. | B42: Ježek Kristýna | C42: 50 | D42: 0 | E42: 0 | F42: 0 | H42: =C42+D42 -> 50
B43: Nováková Simona | C43: 0 | D43: 0 | E43: 50 | F43: 0 | H43: =SUM(C43:G43) -> 50
A44: 20. | B44: Petrásek Ella Martina | C44: 20 | D44: 5 | E44: 20 | F44: 0 | H44: =SUM(C44:G44) -> 45
A45: 20.-21. | B45: Fikáčková Andrea | C45: 20 | D45: 20 | E45: 0 | F45: 0 | H45: =C45+D45 -> 40
B46: Kolářová Viktorie | C46: 20 | D46: 5 | E46: 10 | F46: 5 | H46: =SUM(C46:G46) -> 40
A47: 23.-24. | B47: Nuslová Amélie | C47: 20 | D47: 10 | E47: 0 | F47: 0 | H47: =C47+D47 -> 30
B48: Faltysová Gabriela | C48: 10 | D48: 20 | E48: 0 | F48: 0 | H48: =C48+D48 -> 30
A49: 25.-26. | B49: Hrnčířová Anna | C49: 5 | D49: 10 | E49: 10 | F49: 0 | H49: =SUM(C49:G49) -> 25
B50: Gabrielová Edita Luisa | C50: 20 | D50: 0 | E50: 0 | F50: 5 | H50: 25
A51: 27.-31. | B51: Burešová Karolína | C51: 10 | D51: 10 | E51: 0 | F51: 0 | H51: =C51+D51 -> 20
B52: Andrlová Katka | C52: 10 | D52: 5 | E52: 5 | F52: 0 | H52: =SUM(C52:G52) -> 20
B53: Fáčková Tereza | C53: 10 | D53: 0 | E53: 10 | F53: 0 | H53: =SUM(C53:G53) -> 20
B54: Ulich Viktorie | C54: 0 | D54: 0 | E54: 20 | F54: 0 | H54: =SUM(C54:G54) -> 20
B55: Jiráková Sofie | C55: 0 | D55: 0 | E55: 0 | F55: 20 | H55: 20
A56: 32.-36. | B56: Polnická Sofie | C56: 10 | D56: 0 | E56: 0 | F56: 0 | H56: =C56+D56 -> 10
B57: Datlová Tina | C57: 10 | D57: 0 | E57: 0 | F57: 0 | H57: =C57+D57 -> 10
B58: Taussig Tamar | C58: 10 | D58: 0 | E58: 0 | F58: 0 | H58: =C58+D58 -> 10
B59: Altmann Amelie | C59: 0 | D59: 10 | E59: 0 | F59: 0 | H59: =C59+D59 -> 10
B60: Piovarči Emily | C60: 0 | D60: 0 | E60: 10 | F60: 0 | H60: =SUM(C60:G60) -> 10
A61: 37. | B61: Komárková Adéla | C61: 5 | D61: 0 | E61: 0 | F61: 0 | H61: =C61+D61 -> 5
